Workbook

Sheet Ausstosszeiten
A2: Belastungswerte der Apparate ( LU = ) | H2: Wasserinhalte der Rohre ( VRohr = )
C3: Apparate | G3: PEX - Rohre | L3: Chromstahlrohr | P3: Ausstosszeit
D4: LU | E4: [l/s] | H4: Dim. | I4: [l/m] | M4: Dim. | N4: [l/m] | P4: [s] | Q4: erlaubt
B5: Waschtisch | C5: Wt | D5: 1 | E5: =D5/10 -> 0.1 | H5: 12 | I5: 0.05 | P5: 15 | Q5: 385/1
B6: Küche | C6: Kü | D6: 2 | E6: =D6/10 -> 0.2 | H6: 16 | I6: 0.1 | M6: 15 | N6: 0.133
B7: Dusche | C7: Du | D7: 3 | E7: =D7/10 -> 0.3 | H7: 20 | I7: 0.16 | M7: 18 | N7: 0.201
B8: Badewanne | C8: Bw | D8: 4 | E8: =D8/10 -> 0.4 | H8: 25 | I8: 0.25 | M8: 22 | N8: 0.302
A11: Ausstosszeiten für Warmwasserapparate ( t = )
A12: Objekt | C12: Apparat | G12: Pexleitungen | M12: Verteiler | P12: Ausstosszeit
A13: Haus | C13: App. | D13: Wert | E13: Ausfl. | G13: Länge | H13: Dim | I13: t1 | J13: 2 | L13: Länge | M13: Dim | N13: t3 | O13: 2 | P13: Zeit
A14: [Nr.] | D14: [LU] | E14: [l/s] | G14: [m] | H14: DN | I14: [s] | J14: [s] | L14: [m] | M14: DN | N14: [s] | O14: [s] | P14: [s]
A15: A | B15: Küche | C15: Wt | D15: =IF(C15="","",IF(C15="wt",$D$5,IF(C15="kü",$D$6,IF(C15="du",$D$7,$D$8)))) -> 1 | E15: =IF(D15="","",IF(D15=$D$5,$E$5,IF(D15=$D$6,$E$6,IF(D15=$D$7,$E$7,IF(D15=$D$8,$E$8))))) -> 0.1 | F15: 60 | G15: =F15/10-0.1 -> 5.9 | H15: 16 | I15: =IF(C15="","",IF(H15=$H$5,$I$5*G15,IF(H15=$H$6,$I$6*G15,IF(H15=$H$7,$I$7*G15,IF(H15=$H$8,$I$8*G15))))/E15) -> 5.9 | J15: =IF(I15="","",I15*$J$13) -> 11.8 | K15: 6 | L15: =K15/10-0.1 -> 0.5 | M15: 22 | N15: =IF(C15="","",IF(M15=$M$6,$N$6*L15,IF(M15=$M$7,$N$7*L15,IF(M15=$M$8,$N$8*L15)))/E15) -> 1.51 | O15: =IF(N15="","",N15*$O$13) -> 3.02 | P15: =IF(C15="",0,J15+O15) -> 14.82 | Q15: s
B16: Bad | C16: Kü | D16: =IF(C16="","",IF(C16="wt",$D$5,IF(C16="kü",$D$6,IF(C16="du",$D$7,$D$8)))) -> 2 | E16: =IF(D16="","",IF(D16=$D$5,$E$5,IF(D16=$D$6,$E$6,IF(D16=$D$7,$E$7,IF(D16=$D$8,$E$8))))) -> 0.2 | F16: 135 | G16: =F16/10-0.1 -> 13.4 | H16: 16 | I16: =IF(C16="","",IF(H16=$H$5,$I$5*G16,IF(H16=$H$6,$I$6*G16,IF(H16=$H$7,$I$7*G16,IF(H16=$H$8,$I$8*G16))))/E16) -> 6.7 | J16: =IF(I16="","",I16*$J$13) -> 13.4 | L16: =L15 -> 0.5 | M16: 22 | N16: =IF(C16="","",IF(M16=$M$6,$N$6*L16,IF(M16=$M$7,$N$7*L16,IF(M16=$M$8,$N$8*L16)))/E16) -> 0.755 | O16: =IF(N16="","",N16*$O$13) -> 1.51 | P16: =IF(C16="",0,J16+O16) -> 14.91 | Q16: s
B17: Bad | C17: Du | D17: =IF(C17="","",IF(C17="wt",$D$5,IF(C17="kü",$D$6,IF(C17="du",$D$7,$D$8)))) -> 3 | E17: =IF(D17="","",IF(D17=$D$5,$E$5,IF(D17=$D$6,$E$6,IF(D17=$D$7,$E$7,IF(D17=$D$8,$E$8))))) -> 0.3 | F17: 131 | G17: 13 | H17: 20 | I17: =IF(C17="","",IF(H17=$H$5,$I$5*G17,IF(H17=$H$6,$I$6*G17,IF(H17=$H$7,$I$7*G17,IF(H17=$H$8,$I$8*G17))))/E17) -> 6.933333333 | J17: =IF(I17="","",I17*$J$13) -> 13.86666667 | L17: 0.5 | M17: 22 | N17: =IF(C17="","",IF(M17=$M$6,$N$6*L17,IF(M17=$M$7,$N$7*L17,IF(M17=$M$8,$N$8*L17)))/E17) -> 0.5033333333 | O17: =IF(N17="","",N17*$O$13) -> 1.006666667 | P17: =IF(C17="",0,J17+O17) -> 14.87333333 | Q17: s
B18: Bad | C18: Bw | D18: =IF(C18="","",IF(C18="wt",$D$5,IF(C18="kü",$D$6,IF(C18="du",$D$7,$D$8)))) -> 4 | E18: =IF(D18="","",IF(D18=$D$5,$E$5,IF(D18=$D$6,$E$6,IF(D18=$D$7,$E$7,IF(D18=$D$8,$E$8))))) -> 0.4 | F18: 179 | G18: 17.8 | H18: 20 | I18: =IF(C18="","",IF(H18=$H$5,$I$5*G18,IF(H18=$H$6,$I$6*G18,IF(H18=$H$7,$I$7*G18,IF(H18=$H$8,$I$8*G18))))/E18) -> 7.12 | J18: =IF(I18="","",I18*$J$13) -> 14.24 | L18: 0.5 | M18: 22 | N18: =IF(C18="","",IF(M18=$M$6,$N$6*L18,IF(M18=$M$7,$N$7*L18,IF(M18=$M$8,$N$8*L18)))/E18) -> 0.3775 | O18: =IF(N18="","",N18*$O$13) -> 0.755 | P18: =IF(C18="",0,J18+O18) -> 14.995 | Q18: s
